{"text_format":"2","workbook":"xlsx","n_sheets":4,"sheets":["Utrymningsmodellen","Fall 1 - Alla tar hiss","Fall 2 - Alla tar trappa","Fall 3 - Fler byter till trappa"],"not_rendered":{"charts":0,"images":0,"macros":0,"external_links":0,"defined_names":56,"comments":0,"pivot_tables":0},"unopened":[],"bounds":{"document_bytes":16777216,"sheet_cells":100000,"run_cost":"one","rows_first":2000,"rows_last":500,"rows_between":2000,"halvings":0,"cell_chars":16384,"cell_head_chars":4096},"cells_cut":0,"cells_raw":0,"read":"whole","date_system":"1900"}

{"sheet":"Utrymningsmodellen","index":0,"n_rows":67,"n_cols":8,"rows_kept":67,"cut":false,"hidden":false,"merged":[[0,4,0,5]]}
[{"$nulls":4},"Fältförklaring"]
[{"$nulls":4},"Indata:"]
[]
[null,"Variabler","Beteckning","Väntevärde","Fördelning","Enhet","Förklaring","Kommentar"]
[null,"Förutsättningar"]
[null,"Djup på hisshallen","Z",{"$f":"100","v":100},100,"m","Höjdskillnaden mellan hisshallen och marknivå"]
[null,"Antal personer i hisshall","Perstot",{"$f":"2400","v":2400},2400,"pers","Dimensionerande personantal för utrymning"]
[null,"Andel rörelsehindrade i hisshall","prörelsehinder",9.5000000000000001E-2,{"$f":"_xll.RiskUniform(0.08,0.11)","v":{"$error":"#NAME?"}},null,"Andelen rörelsehindrade som förväntas vistas i hisshallen. Med rörelsehindrad menas personer som inte kan eller har mycket svårt att gå i trappor","Om undermarksanläggningen till exempel ligger nära ett sjukhus behöver andelen rörelsehindrade ökas"]
[]
[null,"Hissutrymning"]
[null,"Antal hissar","nH",8,8,"hissar","Antal tillgängliga utrymningshissar"]
[null,"Hisskapacitet","KapH",32,32,"pers"," "]
[null,"Hisshastighet","vH",4,4,"m/s","Hissens vertikala medelhastighet vid en utrymning "]
[null,"Nyttjandegrad av hiss","ηH",0.8,{"$f":"_xll.RiskTriang(0.7,0.8,0.9)","v":{"$error":"#NAME?"}},null,"Andelen av hisskapaciteten som nyttjas vid en utrymning. Beror till exempel på antal rullstolar samt hur mycket plats folk tar upp.","Om undermarksanläggningen till exempel ligger nära en flygplats  förväntas en högre andel ha med sig baggage och då bör nyttjandegraden sänkas"]
[null,"Andel som först kan tänka sig välja hiss","pväljer",0.92500000000000004,{"$f":"_xll.RiskUniform(0.89,0.96)","v":{"$error":"#NAME?"}},null,"Andel personer som inledningsvis kan tänka sig använda hiss som utrymningsväg"]
[null,"Andel som byter till trappa pga social påverkan","pbyter",0.1,{"$f":"_xll.RiskUniform(0.05,0.15)","v":{"$error":"#NAME?"}},null,"Andelen personer som förväntas byta från hiss till trappa på grund av social påverkan, trängsel och väntetid."]
[null,"Hissdörr öppningstid","tHdö",{"$f":"1.2","v":1.2},{"$f":"1.2","v":1.2},"s","Tiden det tar för hissdörrarna att öppnas."]
[null,"Hissdörr stängningstid","tHds",3,{"$f":"3","v":3},"s","Tiden det tar för hissdörrarna att stängas."]
[null,"Förväntat antal personer i hiss","PersH",{"$f":"D12*D14","v":25.6},{"$f":"_xll.RiskOutput(\"PersH\")+E12*E14","v":{"$error":"#NAME?"}},"pers","Beroende av hisskapaciteten samt nyttjandegraden"]
[null,"Tid för hissfyllning per person","tfyll",1.1299999999999999,{"$f":"_xll.RiskOutput(\"t_fyll\")+_xll.RiskTriang(0.9,1,1.5)","v":{"$error":"#NAME?"}},"s/person","Tiden det tar att fylla en hiss beroende på det förväntade antalet personer per hiss"]
[null,"Tid för hisstömning per person","ttöm",0.91,{"$f":"_xll.RiskOutput(\"t_töm\")+_xll.RiskTriang(0.72,0.8,1.2)","v":{"$error":"#NAME?"}},"s/person","Tiden det tar att tömma en hiss beroende på det förväntade antalet personer per hiss"]
[null,"Restid för hiss","tH",{"$f":"(D17+D18)*2+(D6/D13)*2+D20*D19+D21*D19","v":110.62400000000001},{"$f":"_xll.RiskOutput(\"t_H\")+((E17+E18)*2+(E6/E13)*2+E20*E19+E21*E19)","v":{"$error":"#NAME?"}},"s","Tiden det tar för en hiss att fyllas, åka från ena stannplanet till det andra, tömmas, och sedan åka tillbaka"]
[null,"Andel som kan tänka sig ta hiss","pH",{"$f":"IF(D30=0,1-D8*(1-D15),D15*(1-D16)*(1-D8)+D15*D8)","v":0.84128750000000008},{"$f":"_xll.RiskOutput(\"p_H\")+IF(E30=0,1-E8*(1-E15),E15*(1-E16)*(1-E8)+E15*E8)","v":{"$error":"#NAME?"}},null,"Andelen som tar hiss är summan av de som tar hiss och inte byter på grund av social påverkan"]
[null,"Flöde från hissar","QH",{"$f":"D11*D19/D22","v":1.851316170089673},{"$f":"_xll.RiskOutput(\"Q_H\")+E11*E19/E22","v":{"$error":"#NAME?"}},"pers/s","Det totala uppskattade personflödet via hiss"]
[null,"Maximalt accepterad kötid","thisskö",30,30,"min","Maximalt accepterad kötid till hissarna på 30 minuter"]
[null,"Antal personer som kan ta hissen inom den maximalt accepterade kötiden","Pershisskö",{"$f":"MIN(D7*D23,D24*D25*60)","v":2019.0900000000001},{"$f":"MIN(E7*E23,E24*E25*60)","v":{"$error":"#NAME?"}},"pers","Antal personer som hinner åka hissen innan tiden överstiger den maximalt accepterade kötiden"]
[null,"Antal personer som byter från hiss till trappa på grund av lång kötid","Persbyter",{"$f":"IF(D7*D23-D24*D25*60<0,0,D7*D23-D24*D25*60)","v":0},{"$f":"IF(E7*E23-E24*E25*60<0,0,E7*E23-E24*E25*60)","v":{"$error":"#NAME?"}},"pers","Antal personer som byter till trappa på grund av att tiden överstiger den maximalt accepterade kötiden"]
[]
[null,"Trapputrymning"]
[null,"Antal trappor","nT",2,2,"trappor","Antalet utrymningstrappor från hisshallen till markplan"]
[null,"Trappbredd","breddT",{"$f":"2","v":2},2,"m","Total bredd i varje trappa","Om trappbredden är mindre än 2 meter kan det vara svårt att gå förbi framförvarande långsammare individer."]
[null,"Antal trapphus","ntrapphus",{"$f":"ROUND(D30/2,0)","v":1},{"$f":"ROUND(E30/2,0)","v":1},"trapphus","I varje trapphus förutsätts två trappor gå omlott"]
[null,"Andel som väljer trappa","pT",{"$f":"1-D23-D43","v":0.15158749999999993},{"$f":"_xll.RiskOutput(\"p_T\")+(1-E23-E43)","v":{"$error":"#NAME?"}},null,"Andelen som väljer trappan är de personer som ej väljer hissen eller utrymningsplats"]
[null,"Persontäthet i trappa","D",{"$f":"1.75","v":1.75},{"$f":"_xll.RiskUniform(1.5,2)","v":{"$error":"#NAME?"}},"pers/m2","Den uppskattade persontätheten längre upp i trappan","Om en persontäthet över 3 pers/kvm förväntas i trappan uppstår köbildning sannolikt in till trappan. Beräkna då personflödet baserat på den maximala förväntade persontätheten in till trappan"]
[null,"Gånghastighet i trappa","vgång",0.45,{"$f":"IF(E34<2.2,_xll.RiskUniform(0.4,0.5),0.75-0.144*(E34-0.5))","v":{"$error":"#NAME?"}},"m/s","Gånghastigheten i trappan för de långsammaste individerna som förväntas nå marknivå","Om persontätheten överstiger 2,2 pers/m2 antas gånghastigheten i trappan avta linjärt enligt gånghastighet-persontäthet samband."]
[null,"Specifikt flöde pga persontäthet","QS",{"$f":"D34*D35","v":0.78749999999999998},{"$f":"_xll.RiskOutput(\"Q_S\")+E34*E35","v":{"$error":"#NAME?"}},"pers/(ms)","Det specifika personflödet anger personflödet per meter effektiv trappbredd och sekund"]
[null,"Flöde i trapphus","QT",{"$f":"D36*(D31-2*0.15)*D30","v":2.6774999999999998},{"$f":"_xll.RiskOutput(\"Q_T\")+E36*(E31-2*0.15)*E30","v":{"$error":"#NAME?"}},"pers/s","Det totala personflödet i trapporna per sekund. Uppskattas med det specifika personflödet och den effektiva trappbredden som beräknas genom att ta bort gränsskiktet vid trappväggarna som ej nyttjas (oftast 150 mm)  "]
[null,"Kötid för trappa","tTrappkö",{"$f":"IFERROR((D7*D33+D27)/D37,0)","v":135.87675070028007},{"$f":"_xll.RiskOutput(\"t_Trappkö\")+IFERROR((E7*E33+E27)/E37,0)","v":{"$error":"#NAME?"}},"s","Tiden som personen längst bak i kön i trappan behöver vänta"]
[null,"Stighastighet i trappa","vstig",{"$f":"D35*0.35","v":0.1575},{"$f":"_xll.RiskUniform(0.3*E35,0.4*E35)","v":{"$error":"#NAME?"}},"m/s","Stighastigheten i trappan för de långsammaste individerna"]
[null,"Total tid att gå upp från hisshall till markplan","tT",{"$f":"IF(D30=0,0,D6/D39)","v":634.92063492063494},{"$f":"_xll.RiskOutput(\"t_T\")+IF(E30=0,0,E6/E39)","v":{"$error":"#NAME?"}},"s","Djupet på anläggningen samt stighastigheten i trappan avgör tiden för att bestiga trapporna från hisshallen till marknivå"]
[]
[null,"Invänta räddningstjänst"]
[null,"Andel personer som nyttjar utrymningsplats","pUP",{"$f":"IF(D11=0,D8,(1-D15)*D8)","v":7.1249999999999959E-3},{"$f":"_xll.RiskOutput(\"p_UP\")+IF(E11=0,E8,(1-E15)*E8)","v":{"$error":"#NAME?"}},null,"Andelen personer som ej kan gå i trappor och som inte heller är villiga att använda hiss som utrymningsväg","Rörelsehindrade antas vara mer villiga att nyttja hiss än andra, således förutsätts deras val av utrymningsväg inte ändras på grund av social påverkan"]
[null,"Andel i trappan som väljer utrymningsvåning","pUV",{"$f":"IF(D6<40,0,0.125)","v":0.125},{"$f":"IF(E6<40,0,_xll.RiskUniform(0.1,0.15))","v":{"$error":"#NAME?"}},null,"Personer som ej klarar att utrymma hela vägen till det fria via trapporna.","Enligt källor klarar de flesta, unga och friska, att gå 100 höjdmeter. Vid mindre än 40 meters djup antas alla klara trappbestigning."]
[]
[null,"Kostnader"]
[null,"Kostnad per hiss","KH",{"$f":"1.8*10^3*4","v":7200},{"$f":"_xll.RiskUniform(1.8*10^3*3,1.8*10^3*5)","v":{"$error":"#NAME?"}},"tkr","Kostnaden för en vanlig hiss uppskattas till cirka 1,5-1,8 mkr. Förutsätter att en utrymningshiss är 3-5 ggr så dyr"]
[null,"Kostnad per trappa","KT",{"$f":"25*D6/3","v":833.33333333333337},{"$f":"_xll.RiskUniform(20,30)*E6/3","v":{"$error":"#NAME?"}},"tkr","Kostnaden för en trappa uppskattas till cirka 25 tkr per våning. En våning uppskattas vara cirka 3 meter hög."]
[null,"Kostnad per UV","KUV",{"$f":"40","v":40},{"$f":"_xll.RiskUniform(35,45)","v":{"$error":"#NAME?"}},"tkr/trappa","Kostnaden för en utrymningsvåning förutsätts vara kostnaden för två brandklassade dörrar i klass EI60-S200 och övriga installationer. Dessa uppskattas uppgå till cirka 40 tkr per trappa och utrymningsvåning."," Antar en utrymningsvåning per 11:e meter som för vanliga räddningshissar"]
[null,"Schaktkostnad per kbm","Kschakt",{"$f":"11.4","v":11.4},{"$f":"_xll.RiskUniform(10,12.8)","v":{"$error":"#NAME?"}},"tkr/kbm","Kostnaden uppskattas till cirka 10-12,8 tkr/kbm enligt entreprenadkostnad för station Sofia"]
[null,"Area på hisschaktet","AHisschakt",15,15,"kvm"]
[null,"Area på trappschakt","ATrappschakt",42,42,"kvm"]
[]
[null,"Utvariabler","Beteckning","Väntevärde","Fördelning","Enhet","Kommentar"]
[null,"Utrymning"]
[null,"Total utrymningstid, hiss","tHutr",{"$f":"IF(D30=0,SUM(D26:D27)/(D24*60),(D26)/(D24*60))","v":18.177068046875004},{"$f":"_xll.RiskOutput(\"t_Hutr\")+IF(E30=0,SUM(E26:E27)/(E24*60),(E26)/(E24*60))","v":{"$error":"#NAME?"}},"min","Totala antalet personer som nyttjar hissarna delat med personflödet via hissarna"]
[null,"Total utrymningstid, trappa","tTutr",{"$f":"(D38+D40)/60","v":12.846623093681918},{"$f":"_xll.RiskOutput(\"t_Tutr\")+(E38+E40)/60","v":{"$error":"#NAME?"}},"min","Tiden till att sista person når det fria/utrymningsvåning. I beräkningarna förenklas det att någon av de sista personerna utrymmer hela vägen upp (och viker alltså inte av till en utrymningsvåning). Gånghastigheten från de långsammaste (som troligtvis nyttjar utrymningsvåningen) avgör hastigheten i trappan. Gånghastigheten höjs inte efter utrymningsvåningen vilket medför ett något mer konservativt resultat."]
[null,"Total utrymningstid","tutr",{"$f":"IFERROR(MAX(D56:D57),D57)","v":18.177068046875004},{"$f":"_xll.RiskOutput(\"t_utr\")+IFERROR(MAX(E56:E57),E57)","v":{"$error":"#NAME?"}},"min","Det största värdet på utrymningstid från hiss eller trappa"]
[null,"Antal personer i utrymningsplatser","PersUP",{"$f":"D43*D7","v":17.099999999999991},{"$f":"_xll.RiskOutput(\"Pers_UP\")+E43*E7","v":{"$error":"#NAME?"}},"pers"]
[null,"Antal personer i utrymningsvåningar","PersUV",{"$f":"IF(D30=0,0,(D7*D33+D27)*D44)","v":45.476249999999979},{"$f":"_xll.RiskOutput(\"Pers_UV\")+IF(E30=0,0,(E7*E33+E27)*E44)","v":{"$error":"#NAME?"}},"pers"]
[null,"Antal personer som inväntar räddningstjänst","PersRTJ",{"$f":"SUM(D59:D60)","v":62.576249999999973},{"$f":"_xll.RiskOutput(\"Pers_RTJ\")+SUM(E59:E60)","v":{"$error":"#NAME?"}},"pers","Befinner sig på utrymningsplats i höjd med hisshall eller längre upp vid utrymningsvåning."]
[]
[null,"Kostnad"]
[null,"Total kostnad för hissar","KHtot",{"$f":"D11*(D47+D51*D50*D6)/1000","v":194.4},{"$f":"_xll.RiskOutput(\"K_Htot\")+E11*(E47+E51*E50*E6)/1000","v":{"$error":"#NAME?"}},"mkr","Beroende på antal hissar samt storleken på hisschakten"]
[null,"Total kostnad för trappor","KTtot",{"$f":"(D30*D48+D32*D50*D52*D6)/1000","v":49.546666666666667},{"$f":"_xll.RiskOutput(\"K_Ttot\")+(E30*E48+E32*E50*E52*E6)/1000","v":{"$error":"#NAME?"}},"mkr","Beroende på antal trappor samt antal trapphus och storleken på trappschaktet"]
[null,"Total kostnad för utrymningsvåningar","KUVtot",{"$f":"D49*D30*ROUND(E6/11,0)/1000","v":0.72},{"$f":"E49*E30*ROUND(E6/11,0)/1000","v":{"$error":"#NAME?"}},"mkr","Behöver ej schaktas ut separat utan ingår i trapp/hisschakt i stil med station Sofia. Kostnaden utgörs av 2 brandklassade dörrar med dörrstängare per trappa. Antalet utrymningsvåningar uppskattas genom att dividera djupet med höjden per 11:e våning (med en våningshöjd på 3 meter ger detta en utrymningsvåning var 33:e meter)"]
[null,"Total kostnad","Ktot",{"$f":"SUM(D64:D66)","v":244.66666666666666},{"$f":"_xll.RiskOutput(\"K_tot\")+SUM(E64:E66)","v":{"$error":"#NAME?"}},"mkr","Summan av kostnader på hissar, trappor, utrymningsplatser och utrymningsvåningar"]

{"sheet":"Fall 1 - Alla tar hiss","index":1,"n_rows":36,"n_cols":8,"rows_kept":36,"cut":false,"hidden":false,"merged":[[0,4,0,5]]}
[{"$nulls":4},"Fältförklaring"]
[{"$nulls":4},"Indata:"]
[]
[null,"Variabler","Beteckning","Väntevärde","Fördelning","Enhet","Förklaring","Kommentar"]
[null,"Förutsättningar"]
[null,"Djup på hisshallen","Z",{"$f":"100","v":100},100,"m","Höjdskillnaden mellan hisshallen och marknivå"]
[null,"Antal personer i hisshallen","Perstot",{"$f":"2400","v":2400},2400,"personer","Dimensionerande personantal för utrymning"]
[null,"Andel rörelsehindrade i hisshallen","prörelsehinder",9.5000000000000001E-2,{"$f":"_xll.RiskUniform(0.08,0.11)","v":{"$error":"#NAME?"}},null,"Andelen rörelsehindrade som förväntas vistas i hisshallen. Med rörelsehindrad menas personer som inte kan eller har mycket svårt att gå i trappor","Om undermarksanläggningen till exempel ligger nära ett sjukhus behöver andelen rörelsehindrade ökas"]
[]
[null,"Hissutrymning"]
[null,"Antal hissar","nH",8,8,"hissar","Antal tillgängliga utrymningshissar"]
[null,"Hisskapacitet","KapH",32,32,"personer","Hissarnas maximala personkapacitet"]
[null,"Hisshastighet","vH",4,4,"m/s","Hissens vertikala medelhastighet vid en utrymning "]
[null,"Nyttjandegrad av hissar","ηH",0.8,{"$f":"_xll.RiskTriang(0.7,0.8,0.9)","v":{"$error":"#NAME?"}},null,"Andelen av hisskapaciteten som nyttjas vid en utrymning. Beror till exempel på antal rullstolar samt hur mycket plats folk tar upp.","Om undermarksanläggningen till exempel ligger nära en flygplats  förväntas en högre andel ha med sig baggage och då bör nyttjandegraden sänkas"]
[null,"Hissdörr öppningstid","tHdö",{"$f":"1.2","v":1.2},{"$f":"1.2","v":1.2},"s","Tiden det tar för hissdörrarna att öppnas."]
[null,"Hissdörr stängningstid","tHds",3,3,"s","Tiden det tar för hissdörrarna att stängas."]
[null,"Förväntat antal personer i hiss","PersH",{"$f":"D12*D14","v":25.6},{"$f":"_xll.RiskOutput(\"Pers_H\")+E12*E14","v":{"$error":"#NAME?"}},"personer","Beroende på hisskapaciteten samt nyttjandegraden"]
[null,"Tid för hissfyllning per person","tfyll",{"$f":"1.13","v":1.1299999999999999},{"$f":"_xll.RiskOutput(\"t_fyll\")+_xll.RiskTriang(0.9,1,1.5)","v":{"$error":"#NAME?"}},"s/person","Tiden det tar att fylla en hiss beroende på det förväntade antalet personer per hiss"]
[null,"Tid för hisstömning per person","ttöm",{"$f":"0.91","v":0.91},{"$f":"_xll.RiskOutput(\"t_töm\")+_xll.RiskTriang(0.72,0.8,1.2)","v":{"$error":"#NAME?"}},"s/person","Tiden det tar att tömma en hiss beroende på det förväntade antalet personer per hiss"]
[null,"Restid för hiss","tH",{"$f":"((D15+D16)*2+(D6/D13)*2+D18*D17+D19*D17)","v":110.62400000000001},{"$f":"_xll.RiskOutput(\"t_H\")+((E15+E16)*2+(E6/E13)*2+E18*E17+E19*E17)","v":{"$error":"#NAME?"}},"s","Tiden det tar för en hiss att fyllas, åka från ena stannplanet till det andra, tömmas, och sedan åka tillbaka"]
[null,"Andel som tänka sig ta hiss","pH",1,1,null,"Andelen som tar hiss är summan av de som tar hiss och inte byter på grund av social påverkan"]
[null,"Flöde från hissar","QH",{"$f":"D11*D17/D20","v":1.851316170089673},{"$f":"_xll.RiskOutput(\"Q_H\")+E11*E17/E20","v":{"$error":"#NAME?"}},"pers/s","Det totala uppskattade personflödet via hiss"]
[]
[null,"Kostnader"]
[null,"Kostnad per hiss","KH",{"$f":"1.8*10^3*4","v":7200},{"$f":"_xll.RiskUniform(1.8*10^3*3,1.8*10^3*5)","v":{"$error":"#NAME?"}},"tkr","Kostnaden för en vanlig hiss uppskattas till  cirka 1,5-1,8 mkr. Förutsätter att en utrymningshiss är 3-5 ggr så dyr"]
[null,"Schaktkostnad per kbm","Kschakt",{"$f":"11.4","v":11.4},{"$f":"_xll.RiskUniform(10,12.8)","v":{"$error":"#NAME?"}},"tkr/kbm","Kostnaden uppskattas till cirka 10-12,8 tkr/kbm enligt entreprenadkostnad för station Sofia"]
[null,"Arean på hisschaktet","AHisschakt",15,15,"kvm"]
[]
[null,"Utvariabler","Beteckning","Storlek","Storlek","Enhet","Kommentar"]
[null,"Utrymningsvariabler"]
[null,"Total utrymningstid, hiss","tHutr",{"$f":"(D7*D21)/(D22*60)","v":21.606250000000003},{"$f":"_xll.RiskOutput(\"t_Hutr\")+(E7*E21)/(E22*60)","v":{"$error":"#NAME?"}},"min","Totala antalet personer som nyttjar hissarna delat med personflödet via hissarna"]
[null,"Total utrymningstid","tutr",{"$f":"D31","v":21.606250000000003},{"$f":"_xll.RiskOutput(\"t_utr\")+E31","v":{"$error":"#NAME?"}},"min","Det största värdet på utrymningstid från hiss eller trappa"]
[]
[null,"Kostnadsvariabler"]
[null,"Total kostnad för hissar","KHtot",{"$f":"D11*(D25+D27*D26*D6)/1000","v":194.4},{"$f":"_xll.RiskOutput(\"K_Htot\")+E11*(E25+E27*E26*E6)/1000","v":{"$error":"#NAME?"}},"mkr","Beroende på antal hissar samt storleken på hisschakten"]
[null,"Total kostnad","Ktot",{"$f":"SUM(D35:D35)","v":194.4},{"$f":"_xll.RiskOutput(\"K_tot\")+SUM(E35:E35)","v":{"$error":"#NAME?"}},"mkr","Summan av kostnader på hissar, trappor, utrymningsplatser och utrymningsvåningar"]

{"sheet":"Fall 2 - Alla tar trappa","index":2,"n_rows":43,"n_cols":8,"rows_kept":43,"cut":false,"hidden":false,"merged":[[0,4,0,5]]}
[{"$nulls":4},"Fältförklaring"]
[{"$nulls":4},"Indata:"]
[]
[null,"Variabler","Beteckning","Väntevärde","Fördelning","Enhet","Förklaring","Kommentar"]
[null,"Förutsättningar"]
[null,"Djup på hisshallen","Z",{"$f":"100","v":100},100,"m","Höjdskillnaden mellan hisshallen och marknivå"]
[null,"Antal personer i hisshallen","Perstot",{"$f":"2400","v":2400},2400,"personer","Dimensionerande personantal för utrymning"]
[null,"Andel rörelsehindrade i hisshallen","prörelsehinder",9.5000000000000001E-2,{"$f":"_xll.RiskUniform(0.08,0.11)","v":{"$error":"#NAME?"}},null,"Andelen rörelsehindrade som förväntas vistas i hisshallen. Med rörelsehindrad menas personer som inte kan eller har mycket svårt att gå i trappor","Om undermarksanläggningen till exempel ligger nära ett sjukhus behöver andelen rörelsehindrade ökas"]
[]
[null,"Trapputrymning"]
[null,"Antal trappor","nT",2,2,"trappor","Antalet utrymningstrappor från hisshallen till markplan"]
[null,"Trappbredd","breddT",{"$f":"2","v":2},2,"m","Total bredd i varje trappa"]
[null,"Antal trapphus","ntrapphus",{"$f":"ROUND(D11/2,0)","v":1},{"$f":"ROUND(E11/2,0)","v":1},"trapphus","I varje trapphus förutsätts två trappor gå omlott"]
[null,"Andel som väljer trappa","pT",{"$f":"(1-D8)","v":0.90500000000000003},{"$f":"_xll.RiskOutput(\"p_T\")+(1-E8)","v":{"$error":"#NAME?"}},null,"Andelen som väljer trappan är de personer som ej väljer hissen eller utrymningsplats"]
[null,"Persontäthet i trappa","D",{"$f":"1.75","v":1.75},{"$f":"_xll.RiskUniform(1.5,2)","v":{"$error":"#NAME?"}},"pers/m2","Den uppskattade persontätheten längre upp i trappan","Om en persontäthet över 3 pers/kvm förväntas i trappan uppstår köbildning sannolikt in till trappan. Beräkna då personflödet baserat på den maximala förväntade persontätheten in till trappan"]
[null,"Gånghastighet i trappa","vgång",0.45,{"$f":"IF(E15<2.2,_xll.RiskUniform(0.4,0.5),0.75-0.144*(E15-0.5))","v":{"$error":"#NAME?"}},"m/s","Gånghastigheten i trappan för de långsammaste individerna som förväntas nå marknivå"]
[null,"Specifikt flöde pga persontäthet","QS",{"$f":"D15*D16","v":0.78749999999999998},{"$f":"_xll.RiskOutput(\"Q_S\")+E15*E16","v":{"$error":"#NAME?"}},"pers/(ms)","Det specifika personflödet anger personflödet per meter effektiv trappbredd och sekund"]
[null,"Flöde i trapphus","QT",{"$f":"D17*(D12-2*0.15)*D11","v":2.6774999999999998},{"$f":"_xll.RiskOutput(\"Q_T\")+E17*(E12-2*0.15)*E11","v":{"$error":"#NAME?"}},"pers/s","Det totala personflödet i trapporna per sekund. Uppskattas med det specifika personflödet och den effektiva trappbredden som beräknas genom att ta bort gränsskiktet vid trappväggarna som ej nyttjas (oftast 150 mm)  "]
[null,"Kötid för trappa","tTrappkö",{"$f":"(D7*D14)/D18","v":811.20448179271716},{"$f":"_xll.RiskOutput(\"t_Trappkö\")+(E7*E14)/E18","v":{"$error":"#NAME?"}},"s","Tiden som personen längst bak i kön i trappan behöver vänta"]
[null,"Stighastighet i trappan","vstig",{"$f":"D16*0.35","v":0.1575},{"$f":"E16*_xll.RiskUniform(0.3,0.4)","v":{"$error":"#NAME?"}},"m/s","Stighastigheten i trappan för de långsammaste individerna"]
[null,"Total tid att gå upp från hisshall till markplan","tT",{"$f":"D6/D20","v":634.92063492063494},{"$f":"E6/E20","v":{"$error":"#NAME?"}},"sekunder","Djupet på anläggningen samt stighastigheten i trappan avgör tiden för att bestiga trapporna från hisshallen till marknivå"]
[]
[null,"Invänta räddningstjänst"]
[null,"Andel personer som nyttjar utrymningsplats","pUP",{"$f":"D8","v":9.5000000000000001E-2},{"$f":"_xll.RiskOutput(\"p_UP\")+E8","v":{"$error":"#NAME?"}},null,"Andelen personer som ej kan gå i trappor och som inte heller är villiga att använda hiss som utrymningsväg","Rörelsehindrade antas vara mer villiga att nyttja hiss än andra, således förutsätts deras val av utrymningsväg inte ändras på grund av social påverkan"]
[null,"Andel i trappan som väljer utrymningsvåning","pUV",{"$f":"IF(D6<40,0,0.175)","v":0.17499999999999999},{"$f":"IF(E6<40,0,_xll.RiskUniform(0.15,0.2))","v":{"$error":"#NAME?"}},null,"Personer som ej klarar att utrymma hela vägen till det fria via trapporna.","Enligt källor klarar de flesta, unga och friska, att gå 100 höjdmeter. Vid mindre än 40 meters djup antas alla klara trappbestigning."]
[]
[null,"Kostnader"]
[null,"Kostnad för trappa","KT",{"$f":"25*D6/3","v":833.33333333333337},{"$f":"_xll.RiskUniform(20,30)*E6/3","v":{"$error":"#NAME?"}},"tkr","Kostnaden för en trappa uppskattas till cirka 25 tkr per våning"]
[null,"Kostnad för UV","KUV",{"$f":"40","v":40},{"$f":"_xll.RiskUniform(35,45)","v":{"$error":"#NAME?"}},"tkr/trappa","Kostnaden för en utrymningsvåning förutsätts vara kostnaden för två brandklassade dörrar i klass EI60-S200C och övriga installationer. Dessa uppskattas uppgå till cirka 20 tkr per trappa och utrymningsvåning."," Antar en utrymningsvåning per 11:e meter som för vanliga räddningshissar"]
[null,"Schaktkostnad per kbm","Kschakt",{"$f":"11.4","v":11.4},{"$f":"_xll.RiskUniform(10,12.8)","v":{"$error":"#NAME?"}},"tkr/kbm","Kostnaden uppskattas till cirka 10-12,8 tkr/kbm enligt entreprenadkostnad för station Sofia"]
[null,"Arean på trappschaktet","ATrappschakt",42,42,"kvm"]
[]
[null,"Utvariabler","Beteckning","Storlek","Storlek","Enhet","Kommentar"]
[null,"Utrymningsvariabler"]
[null,"Total utrymningstid","tutr",{"$f":"(D19+D21)/60","v":24.102085278555869},{"$f":"_xll.RiskOutput(\"t_utr\")+(E19+E21)/60","v":{"$error":"#NAME?"}},"min","Tiden till att sista person når det fria/utrymningsvåning. I beräkningarna förenklas det att någon av de sista personerna utrymmer hela vägen upp (och viker alltså inte av till en utrymningsvåning). Gånghastigheten från de långsammaste (som troligtvis nyttjar utrymningsvåningen) avgör hastigheten i trappan. Gånghastigheten höjs inte efter utrymningsvåningen vilket medför ett något mer konservativt resultat."]
[null,"Antal personer i utrymningsplatser","PersUP",{"$f":"D24*D7","v":228},{"$f":"_xll.RiskOutput(\"Pers_UP\")+E24*E7","v":{"$error":"#NAME?"}},"pers"]
[null,"Antal personer i utrymningsvåning","PersUV",{"$f":"D25*D7*D14","v":380.1},{"$f":"_xll.RiskOutput(\"Pers_UV\")+E25*E7*E14","v":{"$error":"#NAME?"}},"pers"]
[null,"Antal personer som inväntar räddningstjänsten","PersRTJ",{"$f":"SUM(D36:D37)","v":608.1},{"$f":"_xll.RiskOutput(\"Pers_RTJ\")+SUM(E36:E37)","v":{"$error":"#NAME?"}},"pers","Befinner sig på utrymningsplats i höjd med hisshall eller längre upp vid utrymningsvåning."]
[]
[null,"Kostnadsvariabler"]
[null,"Total kostnad för trappor","KTtot",{"$f":"(D11*D28+D13*D30*D31*D6)/1000","v":49.546666666666667},{"$f":"_xll.RiskOutput(\"K_Ttot\")+(E11*E28+E13*E30*E31*E6)/1000","v":{"$error":"#NAME?"}},"mkr","Beroende på antal trappor samt antal trapphus och storleken på trappschaktet"]
[null,"Total kostnad för utrymningsvåningar","KUVtot",{"$f":"D29*D11*ROUND(D6/11,0)/1000","v":0.72},{"$f":"_xll.RiskOutput(\"K_UVtot\")+E29*E11*ROUND(E6/11,0)/1000","v":{"$error":"#NAME?"}},"mkr","Behöver ej schaktas ut separat utan ingår i trapp/hisschakt i stil med station Sofia. Kostnaden utgörs av brandklassade dörrar med dörrstängare"]
[null,"Total kostnad","Ktot",{"$f":"SUM(D41:D42)","v":50.266666666666666},{"$f":"_xll.RiskOutput(\"K_tot\")+SUM(E41:E42)","v":{"$error":"#NAME?"}},"mkr","Summan av kostnader på hissar, trappor, utrymningsplatser och utrymningsvåningar"]

{"sheet":"Fall 3 - Fler byter till trappa","index":3,"n_rows":67,"n_cols":8,"rows_kept":67,"cut":false,"hidden":false,"merged":[[0,4,0,5]]}
[{"$nulls":4},"Fältförklaring"]
[{"$nulls":4},"Indata:"]
[]
[null,"Variabler","Beteckning","Väntevärde","Fördelning","Enhet","Förklaring","Kommentar"]
[null,"Förutsättningar"]
[null,"Djup på hisshallen","Z",{"$f":"100","v":100},100,"m","Höjdskillnaden mellan hisshallen och marknivå"]
[null,"Antal personer i hisshallen","Perstot",{"$f":"2400","v":2400},2400,"pers","Dimensionerande personantal för utrymning"]
[null,"Andel rörelsehindrade i hisshallen","prörelsehinder",9.5000000000000001E-2,{"$f":"_xll.RiskUniform(0.08,0.11)","v":{"$error":"#NAME?"}},null,"Andelen rörelsehindrade som förväntas vistas i hisshallen. Med rörelsehindrad menas personer som inte kan eller har mycket svårt att gå i trappor","Om undermarksanläggningen till exempel ligger nära ett sjukhus behöver andelen rörelsehindrade ökas"]
[]
[null,"Hissutrymning"]
[null,"Antal hissar","nH",8,8,"hissar","Antal tillgängliga utrymningshissar"]
[null,"Hisskapacitet","KapH",32,32,"pers","Hissarnas maximala personkapacitet"]
[null,"Hisshastighet","vH",4,4,"m/s","Hissens vertikala medelhastighet vid en utrymning "]
[null,"Nyttjandegrad av hissar","ηH",0.8,{"$f":"_xll.RiskTriang(0.7,0.8,0.9)","v":{"$error":"#NAME?"}},null,"Andelen av hisskapaciteten som nyttjas vid en utrymning. Beror till exempel på antal rullstolar samt hur mycket plats folk tar upp.","Om undermarksanläggningen till exempel ligger nära en flygplats  förväntas en högre andel ha med sig baggage och då bör nyttjandegraden sänkas"]
[null,"Andel som först väljer hiss","pväljer",0.92500000000000004,{"$f":"_xll.RiskUniform(0.89,0.96)","v":{"$error":"#NAME?"}},null,"Andel personer som kan inledningsvis tänka sig använda hiss som utrymningsväg"]
[null,"Andel som byter till trappa pga social påverkan","pbyter",0.9,{"$f":"_xll.RiskUniform(0.85,0.95)","v":{"$error":"#NAME?"}},null,"Andelen personer som förväntas byta från hiss till trappa på grund av social påverkan, trängsel och väntetid."]
[null,"Hissdörr öppningstid","tHdö",{"$f":"1.2","v":1.2},{"$f":"1.2","v":1.2},"s","Tiden det tar för hissdörrarna att öppnas."]
[null,"Hissdörr stängningstid","tHds",3,3,"s","Tiden det tar för hissdörrarna att stängas."]
[null,"Förväntat antal personer i hiss","PersH",{"$f":"D12*D14","v":25.6},{"$f":"_xll.RiskOutput(\"Pers_H\")+E12*E14","v":{"$error":"#NAME?"}},"pers","Beroende på hisskapaciteten samt nyttjandegraden"]
[null,"Tid för hissfyllning per person","tfyll",{"$f":"1.13","v":1.1299999999999999},{"$f":"_xll.RiskOutput(\"t_fyll\")+_xll.RiskTriang(0.9,1,1.5,)","v":{"$error":"#NAME?"}},"s/person","Tiden det tar att fylla en hiss beroende på det förväntade antalet personer per hiss"]
[null,"Tid för hisstömning per person","ttöm",{"$f":"0.91","v":0.91},{"$f":"_xll.RiskOutput(\"t_töm\")+_xll.RiskTriang(0.72,0.8,1.2)","v":{"$error":"#NAME?"}},"s/person","Tiden det tar att tömma en hiss beroende på det förväntade antalet personer per hiss"]
[null,"Restid för hiss","tH",{"$f":"((D17+D18)*2+(D6/D13)*2+D20*D19+D21*D19)","v":110.62400000000001},{"$f":"_xll.RiskOutput(\"t_H\")+((E17+E18)*2+(E6/E13)*2+E20*E19+E21*E19)","v":{"$error":"#NAME?"}},"s","Tiden det tar för en hiss att fyllas, åka från ena stannplanet till det andra, tömmas, och sedan åka tillbaka"]
[null,"Andel som kan tänka sig ta hiss","pH",{"$f":"IF(D30=0,1-D8*(1-D15),D15*(1-D8)*(1-D16)+D15*D8)","v":0.1715875},{"$f":"_xll.RiskOutput(\"p_H\")+IF(E30=0,1-E8*(1-E15),E15*(1-E8)*(1-E16)+E15*E8)","v":{"$error":"#NAME?"}},null,"Andelen som tar hiss är summan av de som tar hiss och inte byter på grund av social påverkan"]
[null,"Flöde från hissar","QH",{"$f":"D11*D19/D22","v":1.851316170089673},{"$f":"_xll.RiskOutput(\"Q_H\")+E11*E19/E22","v":{"$error":"#NAME?"}},"pers/s","Det totala uppskattade personflödet via hiss"]
[null,"Maximalt accepterad kötid","thisskö",30,30,"min","Maximalt accepterad kötid till hissarna på ... minuter"]
[null,"Antal personer som kan ta hissen inom den maximalt accepterade kötiden","Pershisskö",{"$f":"MIN(D7*D23,D24*D25*60)","v":411.81},{"$f":"MIN(E7*E23,E24*E25*60)","v":{"$error":"#NAME?"}},"pers","Antal personer som hinner åka hissen innan tiden överstiger den maximalt accepterade kötiden"]
[null,"Antal personer som byter från hiss till trappa på grund av lång kötid","Persbyter",{"$f":"IF(D7*D23-D24*D25*60<0,0,D7*D23-D24*D25*60)","v":0},{"$f":"IF(E7*E23-E24*E25*60<0,0,E7*E23-E24*E25*60)","v":{"$error":"#NAME?"}},"pers","Antal personer som byter till trappa på grund av att tiden överstiger den maximalt accepterade kötiden"]
[]
[null,"Trapputrymning"]
[null,"Antal trappor","nT",2,2,"trappor","Antalet utrymningstrappor från hisshallen till markplan"]
[null,"Trappbredd","breddT",{"$f":"2","v":2},2,"m","Total bredd i varje trappa","Om trappbredden är mindre än 1,5 meter kan det vara svårt att gå förbi framförvarande långsammare individer."]
[null,"Antal trapphus","ntrapphus",{"$f":"ROUND(D30/2,0)","v":1},{"$f":"ROUND(E30/2,0)","v":1},"trapphus","I varje trapphus förutsätts två trappor gå omlott"]
[null,"Andel som väljer trappa","pT",{"$f":"1-D23-D43","v":0.82128749999999995},{"$f":"_xll.RiskOutput(\"p_T\")+(1-E23-E43)","v":{"$error":"#NAME?"}},null,"Andelen som väljer trappan är de personer som ej väljer hissen eller utrymningsplats"]
[null,"Persontäthet i trappan","D",{"$f":"1.75","v":1.75},{"$f":"_xll.RiskUniform(1.5,2)","v":{"$error":"#NAME?"}},"pers/m2","Den uppskattade persontätheten längre upp i trappan","Om en persontäthet över 3 pers/kvm förväntas i trappan uppstår köbildning sannolikt in till trappan. Beräkna då personflödet baserat på den maximala förväntade persontätheten in till trappan"]
[null,"Gånghastighet i trappor","vgång",0.45,{"$f":"IF(E34<2.2,_xll.RiskUniform(0.4,0.5),0.7-0.144*(E34-0.5))","v":{"$error":"#NAME?"}},"m/s","Gånghastigheten i trappan för de långsammaste individerna som förväntas nå marknivå"]
[null,"Specifikt flöde pga persontäthet","QS",{"$f":"D34*D35","v":0.78749999999999998},{"$f":"_xll.RiskOutput(\"Q_S\")+E34*E35","v":{"$error":"#NAME?"}},"pers/(ms)","Det specifika personflödet anger personflödet per meter effektiv trappbredd och sekund"]
[null,"Flöde i trapphuset","QT",{"$f":"D36*(D31-2*0.15)*D30","v":2.6774999999999998},{"$f":"_xll.RiskOutput(\"Q_T\")+E36*(E31-2*0.15)*E30","v":{"$error":"#NAME?"}},"pers/s","Det totala personflödet i trapporna per sekund. Uppskattas med det specifika personflödet och den effektiva trappbredden som beräknas genom att ta bort gränsskiktet vid trappväggarna som ej nyttjas (oftast 150 mm)  "]
[null,"Kötid för trappa","tTrappkö",{"$f":"IFERROR((D7*D33+D27)/D37,0)","v":736.1680672268908},{"$f":"_xll.RiskOutput(\"t_Trappkö\")+IFERROR((E7*E33+E27)/E37,0)","v":{"$error":"#NAME?"}},"s","Tiden som personen längst bak i kön i trappan behöver vänta"]
[null,"Stighastigheten i trappan","vstig",{"$f":"D35*0.35","v":0.1575},{"$f":"E35*_xll.RiskUniform(0.3,0.4)","v":{"$error":"#NAME?"}},"m/s","Stighastigheten i trappan för de långsammaste individerna"]
[null,"Total tid att gå upp från hisshall till markplan","tT",{"$f":"IF(D30=0,0,D6/D39)","v":634.92063492063494},{"$f":"_xll.RiskOutput(\"t_T\")+IF(E30=0,0,E6/E39)","v":{"$error":"#NAME?"}},"s","Djupet på anläggningen samt stighastigheten i trappan avgör tiden för att bestiga trapporna från hisshallen till marknivå"]
[]
[null,"Invänta räddningstjänst"]
[null,"Andel personer som nyttjar utrymningsplats","pUP",{"$f":"IF(D11=0,D8,(1-D15)*D8)","v":7.1249999999999959E-3},{"$f":"_xll.RiskOutput(\"p_UP\")+IF(E11=0,E8,(1-E15)*E8)","v":{"$error":"#NAME?"}},null,"Andelen personer som ej kan gå i trappor och som inte heller är villiga att använda hiss som utrymningsväg","Rörelsehindrade antas vara mer villiga att nyttja hiss än andra, således förutsätts deras val av utrymningsväg inte ändras på grund av social påverkan"]
[null,"Andel i trappan som väljer utrymningsvåning","pUV",{"$f":"IF(D6<40,0,0.125)","v":0.125},{"$f":"IF(E6<40,0,_xll.RiskUniform(0.1,0.15))","v":{"$error":"#NAME?"}},null,"Personer som ej klarar att utrymma hela vägen till det fria via trapporna.","Enligt källor klarar de flesta, unga och friska, att gå 100 höjdmeter. Vid mindre än 40 meters djup antas alla klara trappbestigning."]
[]
[null,"Kostnader"]
[null,"Kostnad per hiss","KH",{"$f":"1.8*10^3*4","v":7200},{"$f":"_xll.RiskUniform(1.8*10^3*3,1.8*10^3*5)","v":{"$error":"#NAME?"}},"tkr","Kostnaden för en vanlig hiss uppskattas till cirka 1,5-1,8 mkr. Förutsätter att en utrymningshiss är 3-5 ggr så dyr"]
[null,"Kostnad för trappa","KT",{"$f":"25*D6/3","v":833.33333333333337},{"$f":"_xll.RiskUniform(20,30)*E6/3","v":{"$error":"#NAME?"}},"tkr","Kostnaden för en trappa uppskattas till cirka 25 tkr per våning. En våning uppskattas vara cirka 3 meter hög."]
[null,"Kostnad för UV","KUV",{"$f":"40","v":40},{"$f":"_xll.RiskUniform(35,45)","v":{"$error":"#NAME?"}},"tkr/trappa","Kostnaden för en utrymningsvåning förutsätts vara kostnaden för två brandklassade dörrar i klass EI60-S200C och övriga installationer. Dessa uppskattas uppgå till cirka 20 tkr per trappa och utrymningsvåning."," Antar en utrymningsvåning per 11:e meter som för vanliga räddningshissar"]
[null,"Schaktkostnad per kbm","Kschakt",{"$f":"11.4","v":11.4},{"$f":"_xll.RiskUniform(10,12.8)","v":{"$error":"#NAME?"}},"tkr/kbm","Kostnaden uppskattas till cirka 10-12,8 tkr/kbm enligt entreprenadkostnad för station Sofia"]
[null,"Arean på hisschaktet","AHisschakt",15,15,"kvm"]
[null,"Arean på trappschaktet","ATrappschakt",42,42,"kvm"]
[]
[null,"Utvariabler","Beteckning","Väntevärde","Fördelning","Enhet","Kommentar"]
[null,"Utrymning"]
[null,"Total utrymningstid, hiss","tHutr",{"$f":"IF(D30=0,SUM(D26:D27)/(D24*60),(D26)/(D24*60))","v":3.7073624218750005},{"$f":"_xll.RiskOutput(\"t_Hutr\")+IF(E30=0,SUM(E26:E27)/(E24*60),(E26)/(E24*60))","v":{"$error":"#NAME?"}},"min","Totala antalet personer som nyttjar hissarna delat med personflödet via hissarna"]
[null,"Total utrymningstid, trappa","tTutr",{"$f":"(D38+D40)/60","v":22.851478369125427},{"$f":"_xll.RiskOutput(\"t_Tutr\")+(E38+E40)/60","v":{"$error":"#NAME?"}},"min","Tiden till att sista person når det fria/utrymningsvåning. I beräkningarna förenklas det att någon av de sista personerna utrymmer hela vägen upp (och viker alltså inte av till en utrymningsvåning). Gånghastigheten från de långsammaste (som troligtvis nyttjar utrymningsvåningen) avgör hastigheten i trappan. Gånghastigheten höjs inte efter utrymningsvåningen vilket medför ett något mer konservativt resultat."]
[null,"Total utrymningstid","tutr",{"$f":"IFERROR(MAX(D56:D57),D57)","v":22.851478369125427},{"$f":"_xll.RiskOutput(\"t_utr\")+IFERROR(MAX(E56:E57),E57)","v":{"$error":"#NAME?"}},"min","Det största värdet på utrymningstid från hiss eller trappa"]
[null,"Antal personer i utrymningsplatser","PersUP",{"$f":"D43*D7","v":17.099999999999991},{"$f":"_xll.RiskOutput(\"Pers_UP\")+E43*E7","v":{"$error":"#NAME?"}},"pers"]
[null,"Antal personer i utrymningsvåning","PersUV",{"$f":"IF(D30=0,0,(D7*D33+D27)*D44)","v":246.38624999999999},{"$f":"_xll.RiskOutput(\"Pers_UV\")+IF(E30=0,0,(E7*E33+E27)*E44)","v":{"$error":"#NAME?"}},"pers"]
[null,"Antal personer som inväntar räddningstjänsten","PersRTJ",{"$f":"SUM(D59:D60)","v":263.48624999999998},{"$f":"_xll.RiskOutput(\"Pers_RTJ\")+SUM(E59:E60)","v":{"$error":"#NAME?"}},"pers","Befinner sig på utrymningsplats i höjd med hisshall eller längre upp vid utrymningsvåning."]
[]
[null,"Kostnad"]
[null,"Total kostnad för hissar","KHtot",{"$f":"D11*(D47+D51*D50*D6)/1000","v":194.4},{"$f":"_xll.RiskOutput(\"K_Htot\")+E11*(E47+E51*E50*E6)/1000","v":{"$error":"#NAME?"}},"mkr","Beroende på antal hissar samt storleken på hisschakten"]
[null,"Total kostnad för trappor","KTtot",{"$f":"(D30*D48+D32*D50*D52*D6)/1000","v":49.546666666666667},{"$f":"_xll.RiskOutput(\"K_Ttot\")+(E30*E48+E32*E50*E52*E6)/1000","v":{"$error":"#NAME?"}},"mkr","Beroende på antal trappor samt antal trapphus och storleken på trappschaktet"]
[null,"Total kostnad för utrymningsvåningar","KUVtot",{"$f":"D49*D30*ROUND(E6/11,0)/1000","v":0.72},{"$f":"E49*E30*ROUND(E6/11,0)/1000","v":{"$error":"#NAME?"}},"mkr","Behöver ej schaktas ut separat utan ingår i trapp/hisschakt i stil med station Sofia. Kostnaden utgörs av brandklassade dörrar med dörrstängare"]
[null,"Total kostnad","Ktot",{"$f":"SUM(D64:D66)","v":244.66666666666666},{"$f":"_xll.RiskOutput(\"K_tot\")+SUM(E64:E66)","v":{"$error":"#NAME?"}},"mkr","Summan av kostnader på hissar, trappor, utrymningsplatser och utrymningsvåningar"]